Cogmind - Beta 15 @@@ ROGUE MODE // 2025.10.21 @ 02:45:06 Player: MORONI274 Result: Destroyed by as-14560 with Assembled F-torch Performance ------------- Evolutions (1) 500 Regions Visited (3) 600 Robots Destroyed (18) 90 Value Destroyed (473) 473 Prototype IDs (0) 0 Alien Tech Used (0) 0 Bonus (0) 0 TOTAL SCORE: 1663 Bonus ------- None Cogmind --------- Core Integrity 0/400 Matter 4/300 Energy 100/100 System Corruption 27% Temperature Cool (20) Movement Core (550) Ox10 Location -9/Mines Parts ------- > --- POWER (1) -------- (None) > --- PROPULSION (2) --- (None) > --- UTILITY (3) ------ Medium Storage Unit Large Storage Unit > --- WEAPON (3) ------- Mace > --- INVENTORY (15) --- Light Treads Wheel Compact Wheel Large Storage Unit Signal Interpreter Targeting Computer Improved Targeting Computer ECM Suite ECM Suite Datajack Mining Laser Peak State ------------ > --- POWER ------------ Reinforced Ion Engine > --- PROPULSION ------- Light Treads Light Treads > --- UTILITY ---------- Large Storage Unit Light Armor Plating Medium Armor Plating > --- WEAPON ----------- Heavy Assault Rifle Datajack Mace > --- INVENTORY -------- Light Treads Light Treads Light Treads Light Treads Wheel Compact Wheel Medium Storage Unit Large Storage Unit Signal Interpreter Targeting Computer Improved Targeting Computer ECM Suite ECM Suite Core Shielding Assault Rifle [Rating: 14] Favorites ----------- Power Light Ion Engine Engine Light Ion Engine Propulsion Light Treads Treads Light Treads Wheel Wheel Utility Large Storage Unit Storage Large Storage Unit Processor Visual Processing Unit Protection Core Shielding Weapon Particle Gun Energy Gun Particle Gun Ballistic Gun Assault Rifle Special Weapon Mining Laser Impact Weapon Mace Special Melee Weapon Datajack Build | -11 -10 -9 -9 ------- Run | Yrd Mat Mat Min Slots Evolved 2 | . . 2 . Power . | . . . . Propulsion . | . . . . Utility 1 | . . 1 . Weapon 1 | . . 1 . Parts Attached 31 | 6 4 18 3 Power 4 | 1 1 2 . Engine 4 | 1 1 2 . Core . | . . . . Reactor . | . . . . Propulsion 6 | 2 . 1 3 Treads 5 | 2 . 1 2 Leg . | . . . . Wheel 1 | . . . 1 Hover . | . . . . Flight . | . . . . Utility 9 | 1 3 5 . Device . | . . . . Storage 4 | 1 2 1 . Processor 1 | . 1 . . Hackware . | . . . . Protection 4 | . . 4 . Artifact . | . . . . Weapon 12 | 2 . 10 . Energy Gun 4 | 1 . 3 . Energy Cannon . | . . . . Ballistic Gun 3 | 1 . 2 . Ballistic Cannon . | . . . . Launcher . | . . . . Special Weapon 2 | . . 2 . Impact Weapon 1 | . . 1 . Slashing Weapon . | . . . . Piercing Weapon . | . . . . Special Melee Weapon 2 | . . 2 . Unidentified Prototypes . | . . . . Corrupted Parts 1 | . . 1 . System Corruption 9 | . . 9 . Parts Lost 22 | . 3 10 9 Power 4 | . 1 2 1 Propulsion 5 | . . . 5 Utility 3 | . . 2 1 Weapon 10 | . 2 6 2 Highest Loss Streak 9 | . 2 4 9 To Critical Strikes 1 | . . . 1 Average Backups 11 | 2 8 13 13 Power . | . . . . Propulsion 3 | 1 2 4 4 Utility 5 | . 1 7 6 Weapon 1 | . 3 1 1 Tool/Special . | . . . . Unused Backups 8 | . 1 . 7 Power . | . . . . Propulsion 2 | . . . 2 Utility 5 | . . . 5 Weapon 1 | . 1 . . Tool/Special . | . . . . Average Slot Usage (%) 94 | . 94 95 71 Engine 11 | . 13 10 5 Treads 23 | . 28 22 15 Storage 12 | . 14 11 15 Processor 6 | . 9 4 . Protection 10 | . . 16 13 Energy Gun 13 | . 13 13 . Ballistic Gun 6 | . 13 2 12 Special Weapon 2 | . . 4 . Impact Weapon 1 | . . 2 8 Special Melee Weapon 3 | . . 6 . Peak Build Rating 14 | 6 9 14 13 Average Rating 10 | 3 8 12 8 On Entrance 6 | . 6 7 13 Naked Turns . | . . . . Heaviest Build 47 | 12 27 47 41 Greatest Support 40 | 40 40 40 40 Greatest Overweight (x) 10 | . . 1 10 Average Overweight (x) . | . . . 1 Largest Inventory Capacity 15 | 8 15 15 15 Average Capacity 13 | 6 10 15 15 Most Carried 15 | 4 15 15 15 Average Carried 11 | 3 8 13 13 Final Capacity 15 | 8 15 15 15 Final Carried 15 | 4 15 15 11 Class Distribution -------------------- 79% | Mutant 10% | Scavenger-Mutant 9% | Tank Dominant Class ---------------- Mutant | -10/Materials Mutant | -9/Materials Scavenger-Mutant | -9/Mines Resources | -11 -10 -9 -9 ----------- Run | Yrd Mat Mat Min Matter Collected 559 | 202 144 213 . Remotely . | . . . . Salvage Created 541 | . 204 327 10 Parts 38 | . 21 17 . Haulers Intercepted . | . . . . Recyclers Shooed . | . . . . Parts Field Recycled . | . . . . Retrieved Matter . | . . . . Parts Self-Destructed . | . . . . Prevented . | . . . . Kills | -11 -10 -9 -9 ------- Run | Yrd Mat Mat Min Combat Hostiles Destroyed 17 | . 7 8 2 Melee 1 | . . . 1 Guns 12 | . 5 6 1 AOE 2 | . 2 . . Classes Destroyed 7 | . 3 3 1 Operator 1 | . . 1 . Watcher 2 | . 2 . . Swarmer 5 | . 5 . . Grunt 6 | . 2 4 . Brawler 1 | . . 1 . Sentry 3 | . . 3 . Assembled 2 | . . . 2 Best Kill Streak 4 | . 4 2 1 Combat Bots Only 4 | . 4 2 1 Max Kills in Single Turn 2 | . 2 1 1 Gunslinging . | . . . . Exploded 2 | . 2 . . Melee 1 | . . . 1 Uniques/NPCs Destroyed . | . . . . Combat | -11 -10 -9 -9 -------- Run | Yrd Mat Mat Min Hostile Shots Fired 199 | . 55 79 65 Missed 42 | . 11 19 12 Hits 157 | . 44 60 53 Melee 10 | . . 2 8 Projectile 147 | . 44 58 45 AOE 7 | . . . 7 Critical Strikes 9 | . 1 5 3 Actively Blocked 1 | . . . 1 Damage Taken 2625 | . 432 1149 1044 Core 480 | . 74 172 234 Absorbed by Shields . | . . . . Redirected to Shielding 48 | . . 19 29 Core Remaining (%) 85 | 100 70 . . Volleys Fired 63 | . 17 42 4 Largest 3 | . 2 3 2 Hottest 230 | . 60 230 43 Shots Fired 117 | . 34 78 5 Gun 85 | . 34 46 5 Cannon . | . . . . Launcher . | . . . . Special 32 | . . 32 . Kinetic 39 | . 17 17 5 Thermal 60 | . . 60 . Explosive . | . . . . Electromagnetic 18 | . 17 1 . Robot Hit Streak 16 | . 6 16 1 Robot Miss Streak 5 | . 5 3 4 Penetration Max . | . . . . Secondary Targets 1 | . 1 . . Max Gunslinging Chain 1 | . 1 . . Shots Hit Robots 57 | . 17 37 3 Core Hits 22 | . 8 12 2 Critical Kills . | . . . . Critical Parts Destroyed 1 | . . 1 . Critical Strikes 1 | . . 1 . Smash 1 | . . 1 . Melee Attacks 12 | . . 10 2 Impact 9 | . . 7 2 Slashing . | . . . . Piercing . | . . . . Sneak Attacks . | . . . . Combat Hostiles . | . . . . Follow-up Attacks . | . . . . Damage Inflicted 959 | . 293 578 88 Guns 661 | . 230 417 14 Cannons . | . . . . Explosions 63 | . 63 . . Melee 187 | . . 113 74 Ramming . | . . . . Kinetic 267 | . 111 142 14 Thermal 386 | . 63 323 . Explosive . | . . . . Electromagnetic 119 | . 119 . . Impact 187 | . . 113 74 Slashing . | . . . . Piercing . | . . . . Highest Corruption 27 | . . 26 27 Average Corruption 19 | . . 18 26 Corruption Purged . | . . . . Corruption Blocked . | . . . . Effects 40 | . . 35 5 Message Errors 5 | . . 5 . Matter Fused 13 | . . 11 2 Heat Flow Errors 4 | . . 4 . Energy Discharges 4 | . . 4 . Parts Rejected 2 | . . 1 1 Data Loss (minor) 2 | . . 1 1 Data Loss (major) 2 | . . 2 . Alerts 1 | . . 1 . Misdirections 2 | . . 1 1 Weapon Failures 5 | . . 5 . Overload Shots . | . . . . Overflow Damage 35 | . 11 24 . Projectiles . | . . . . Explosions 11 | . 11 . . Melee 24 | . . 24 . Knockbacks 1 | . . . 1 Impact 1 | . . . 1 Kinetic . | . . . . Secondary . | . . . . Self-Inflicted Damage 28 | . 28 . . Shots 1 | . 1 . . Rammed . | . . . . Targets Rammed . | . . . . Kicked . | . . . . Crushed . | . . . . Highest Temperature 564 | . 24 564 12 Average Temperature 128 | . 13 136 7 Received Heat Transfer 641 | . 60 381 200 Effects 16 | . . 16 . Shutdowns 2 | . . 2 . Energy Bleed 2 | . . 2 . Interference 5 | . . 5 . Matter Decay 4 | . . 4 . Damage (major) 2 | . . 2 . Damage (core) 1 | . . 1 . Siege Activations . | . . . . Martial Activations . | . . . . Shielding Activations . | . . . . Robots Disrupted . | . . . . Combat Hostiles . | . . . . Robots Corrupted 2 | . . 2 . Combat Hostiles 2 | . . 2 . Parts Fried 2 | . . 2 . Impact Corruptions 2 | . . 2 . Robots Melted . | . . . . Combat Hostiles . | . . . . Parts Melted . | . . . . Heat Transferred 829 | . 100 729 . Parts Sabotaged . | . . . . Parts Stolen . | . . . . Parts Stripped . | . . . . Power Chain Reactions 1 | . 1 . . Alert | -11 -10 -9 -9 ------- Run | Yrd Mat Mat Min Maximum Alert Level . | . . . . Low Security (%) 100 | 100 100 100 100 Level 1 . | . . . . Level 2 . | . . . . Level 3 . | . . . . Level 4 . | . . . . Level 5 . | . . . . High Security . | . . . . Max Security . | . . . . Peak Influence 82 | . 82 68 21 Initial 21 | . . 15 21 Average 13 | . 16 14 6 Influence Increases 418 | . 178 240 . Destroy 0b10 Robot/C 300 | . 140 160 . Destroy 0b10 Robot/NC 15 | . 10 5 . Destroy Leader 74 | . 24 50 . Destroy Structure 14 | . 4 10 . Lose Combat Pursuer 15 | . . 15 . Influence Decreases 418 | . 140 222 56 Entered New Map 58 | . . 23 35 Time Decay 319 | . 120 189 10 Lost Part 41 | . 20 10 11 Squads Dispatched 2 | . 1 1 . Investigation . | . . . . Extermination . | . . . . Reinforcement 2 | . 1 1 . Assault . | . . . . Garrison . | . . . . Intercept . | . . . . Searches Triggered . | . . . . Construction Impeded . | . . . . Haulers Reinforced . | . . . . Active Scanning Responses . | . . . . Cargo Convoy Interrupts . | . . . . Stealth | -11 -10 -9 -9 --------- Run | Yrd Mat Mat Min Distress Signals 1 | . . 1 . Communications Jammed . | . . . . Distress Signals . | . . . . Times Spotted 48 | . 16 11 21 Peak Tracking Total 20 | . 5 3 20 Tactical Retreats 2 | . . 1 1 Traps | -11 -10 -9 -9 ------- Run | Yrd Mat Mat Min Traps Triggered . | . . . . Indirectly . | . . . . Trap Hack Attempts . | . . . . Triggered . | . . . . Disarmed . | . . . . Reprogrammed . | . . . . Reused . | . . . . Traps Extracted . | . . . . Installed . | . . . . Triggered . | . . . . Machines | -11 -10 -9 -9 ---------- Run | Yrd Mat Mat Min Machines Disabled . | . . . . Max in Single Turn . | . . . . Machines Repaired . | . . . . Machines Dismantled . | . . . . Machines Sabotaged . | . . . . Overloaded Fab Kills . | . . . . Hacking | -11 -10 -9 -9 --------- Run | Yrd Mat Mat Min Machines Accessed 1 | . . 1 . Terminals 1 | . . 1 . Fabricators . | . . . . Repair Stations . | . . . . Recycling Units . | . . . . Scanalyzers . | . . . . Garrison Access . | . . . . Total Hacks 1 | . . 1 . Successful 1 | . . 1 . Failed . | . . . . Catastrophic . | . . . . Database Lockouts . | . . . . Manual . | . . . . Terminals 1 | . . 1 . Fabricators . | . . . . Repair Stations . | . . . . Recycling Units . | . . . . Scanalyzers . | . . . . Garrison Access . | . . . . Terminal Hacks 1 | . . 1 . Alert Level 1 | . . 1 . Fabricator Hacks . | . . . . Repair Station Hacks . | . . . . Recycling Unit Hacks . | . . . . Scanalyzer . | . . . . Garrison Access Hacks . | . . . . Unauthorized Hacks . | . . . . Terminals . | . . . . Fabricators . | . . . . Repair Stations . | . . . . Recycling Units . | . . . . Scanalyzers . | . . . . Garrison Access . | . . . . Data Cores Recovered . | . . . . Used . | . . . . Hacking Detections 1 | . . 1 . Full Trace Events . | . . . . Feedback Events . | . . . . Feedback Blocked . | . . . . Robot Schematics Acquired . | . . . . Robots Built . | . . . . Authchips . | . . . . Time . | . . . . Total Robot Build Rating . | . . . . Part Schematics Acquired . | . . . . Parts Built . | . . . . Authchips . | . . . . Time . | . . . . Total Part Build Rating . | . . . . Parts Repaired . | . . . . Time . | . . . . Parts Recycled . | . . . . Recycled Matter . | . . . . Retrieved Matter . | . . . . Retrieved Components . | . . . . Parts Scanalyzed . | . . . . Part Schematics Acquired . | . . . . Parts Damaged . | . . . . Bothacking | -11 -10 -9 -9 ------------ Run | Yrd Mat Mat Min Used RIF Installer . | . . . . Robots Hacked 1 | . . 1 . Non-combat . | . . . . Combat 1 | . . 1 . Robot Hacks Applied 2 | . . 2 . parse_system 2 | . . 2 . Relay Couplers Released . | . . . . Fabnet Peak Effective % . | . . . . Robots Rewired . | . . . . Allies Hacked . | . . . . Hacks Repelled . | . . . . Allies | -11 -10 -9 -9 -------- Run | Yrd Mat Mat Min Total Allies . | . . . . Largest Group . | . . . . Highest-Rated Group . | . . . . Highest-Rated Ally . | . . . . Total Orders . | . . . . Ally Attacks . | . . . . Total Damage . | . . . . Kills . | . . . . Allies Corrupted . | . . . . Allies Melted . | . . . . Intel | -11 -10 -9 -9 ------- Run | Yrd Mat Mat Min Active Infowar (turns) 868 | . 432 436 . Optics 868 | . 432 436 . Robot Analysis Total . | . . . . Derelict Logs Recovered . | . . . . Drone Launches . | . . . . Drone Recoveries . | . . . . Exploration | -11 -10 -9 -9 ------------- Run | Yrd Mat Mat Min Turns Passed 1865 | 114 605 1069 77 Spaces Moved 893 | 67 336 468 22 Core 6 | 5 . . 1 Treads 881 | 62 336 468 15 Legs . | . . . . Wheels 6 | . . . 6 Hover . | . . . . Flight . | . . . . Fastest Speed 50 | 50 160 160 110 Average Speed 165 | 151 160 169 209 Slowest Speed 550 | 160 160 240 550 Overloaded Moves . | . . . . Propulsion Burnouts . | . . . . Robots Hopped . | . . . . Potential Cave-ins 6 | . . 6 . Cave-ins Triggered 1 | . . 1 . Exploration Rate (%) 21 | 6 44 24 10 Regions Visited 3 Branch Regions 1 Pre-discovered Areas . | . . . . Known Exits Taken . | . . . . Unknown Exits Taken 3 | 1 1 1 . Scrap Searched . | . . . . Spaces Dug 17 | . . 17 . Terrain Destroyed 29 | . 3 26 . Melee . | . . . . Projectile 26 | . . 26 . AOE 3 | . 3 . . Terrain Rammed . | . . . . Walls Destroyed . | . . . . Machines Disabled . | . . . . Actions | -11 -10 -9 -9 --------- Run | Yrd Mat Mat Min Total 1070 | 76 370 581 43 Wait 33 | . . 27 6 Move 890 | 66 335 467 22 Hop . | . . . . Pick Up 28 | 4 12 12 . Fast Attach 10 | 6 1 3 . Attach 18 | . 1 12 5 Detach 1 | . . . 1 Swap 13 | . 2 8 3 Drop 2 | . 2 . . Fire 63 | . 17 42 4 Melee 12 | . . 10 2 Ram . | . . . . Kick . | . . . . Crush . | . . . . Escape Stasis . | . . . . Rewire . | . . . . Trap . | . . . . Miscellaneous . | . . . . Route ------- -11/Scrapyard -10/Materials (discovered 2 exits: *Mat / [*Min]) -9/Materials -9/Mines (discovered 1 exit: [*Zio]) History --------- Turn | Location | Event 9 | -11/Scrapyard | Discovered new exit (range 15) 115 | -11/Scrapyard | Entered Materials 116 | -10/Materials | Met a group of wandering Federalists 309 | -10/Materials | Build established: Mutant 311 | -10/Materials | Discovered new exit (range 10) 375 | -10/Materials | Discovered new exit (range 8) 720 | -10/Materials | Entered another Materials area 720 | -9/Materials | Evolved 2 slots: Utility x1, Weapon x1 1187 | -9/Materials | Crushed by falling debris 1187 | -9/Materials | System corruption reached 10% 1218 | -9/Materials | Lost 3 parts (1p1u1w) 1575 | -9/Materials | Lost 4 parts (4w) 1713 | -9/Materials | Discovered new exit (range 9) 1789 | -9/Materials | Entered Mines 1796 | -9/Mines | Assembled infested the area 1801 | -9/Mines | Assisted by a Guerilla fighting off Assembled 1819 | -9/Mines | A Derelict revealed a hidden shortcut to a safe place 1821 | -9/Mines | Core integrity fell below 50% 1861 | -9/Mines | Core integrity fell below 20% 1866 | -9/Mines | Destroyed by as-14560 with Assembled F-torch Last Messages --------------- 01835_ Assault Rifle destroyed. 01837_ System corrupted: Matter fused (-10). 01839_ Lgt. Treads destroyed. 01840_ The unstable cave ceiling collapses. 01848_ Lgt. Treads destroyed. 01848_ System corrupted by crushing effect (+1). 01849_ The unstable cave ceiling collapses. 01850_ U-05 Engineer lays Concrete. 01853_ System corrupted: Core Shielding rejected. 01854_ U-05 Engineer builds a Wall. 01855_ as-66991 sneak attacks. 01855_ U-05 Engineer system corrupted by crushing effect. 01855_ U-05 Engineer knocked back. 01856_ Critical hit (Destroy). 01856_ Lgt. Treads destroyed. 01858_ Knocked back. 01858_ as-36499 destroyed. 01860_ The unstable cave ceiling collapses. Map ----- +----------------------------------------------------+ | | | | | | | | | | | | | | | | | | | | | | | | | | | | | | | | | | | | | | | | | ?????????????????????????????????? | | ?????????????????????????????????? | | ????????????????????????####?????? | | ???????????????????###### ####??? | | ?????????????????### # ##?? | | ?????????????????# @! #?? | | ????????????????# # aa #?? | | ??????????####### a ##?? | | ?????? % a #??? | | ?????????????#### a #??? | | ????????????????## #??? | | ???????????????# # ###??? | | ??????????????# ## ##???? | | ??????????????# ? # ##????? | | ??????????????# ?### # #?????? | | ?????????????? ??? # % #?????? | | ????????????????? ##?????? | | ???????????????? ???????? | | ???????????????? > ???????? | | ??????????????? ???????? | | ??????????????# #"#!% ??????? | | ??????????????######## ??????? | | ?????????????????????#% ??????? | | ????????????????????? " ??????? | | ?????????????????????? ???????? | | ?????????????????????????????????? | | ?????????????????????????????????? | | ?????????????????????????????????? | | ?????????????????????????????????? | | ?????????????????????????????????? | +----------------------------------------------------+ Best States ------------- Heat Dissipation 28 Energy Generation 12 Energy Capacity 265 Matter Stores 300 Matter Capacity 300 Sight Range 18 Terrain Scan Density 10 Armor Coverage 375 Core Shielding 20 Evasion (%) 40 Recoil Reduction 2 Item Schematics ----------------- None Robot Schematics ------------------ None Fabricated ------------ Nothing Repaired ---------- Nothing Alien Tech Used ----------------- None Achievements -------------- Hunted Challenges ------------ None Game ------ Seed LinearGravjetFragment Manual? 0 Play Time 00:17:32 Cumulative 12.7 hours Start 2025.10.21 @ 02:30:20 End 2025.10.21 @ 02:45:06 Sessions 1 Manual Loads 0 Difficulty Rogue Special Mode None Game No. 24 Rogue 24 Adventurer 0 Explorer 0 Win Type - Total 0 Types 0/0/0/0/0/0/0/0/0/0 Lore% 8 Gallery% 15 Achievement% 17 Wizard Run 0 Options --------- Layout 1 ASCII 0 Keyboard 0 Movement Arrows Keybinds 0 Fullscreen 1 Font 24/Smallcaps Map View 50x35 Zoom Use 0% Tactical HUD 1 Map Filters NONE Filters NONE Steam 1 RUN: b133f198-0d03-448d-b183-93f20256bd7f